fUSD/lending_fUSD_20240925
["ID","MTS","AMOUNT","RATE_DAILY","PERIOD"]
[339193261,1727284232533,-889.15149544,0.00011387,2]
[339193262,1727284232588,500.0,0.00021999,120]
[339193263,1727284232646,500.0,0.00021999,120]
[339193264,1727284232659,-6803.1172717,0.00011387,2]
[339193265,1727284232668,-2000.0,0.00011393,2]
[339193266,1727284232680,-156.26,0.00011398,2]
[339193267,1727284232690,-348.09,0.00011399,2]
[339193268,1727284232700,-250.0,0.00011407,2]
[339193269,1727284232709,-200.0,0.00011456,2]
[339193270,1727284232719,-250.0,0.00011471,2]
[339193271,1727284232729,-1155.52,0.00011473,2]
[339193272,1727284232740,-238.07,0.00011535,2]
[339193273,1727284232750,-302.7,0.00011843,2]
[339193274,1727284232760,-474.16572659,0.00012014,2]
[339193275,1727284232774,-432.000004,0.00012014,2]
[339193276,1727284232787,-93.83426941,0.00012014,2]
[339193277,1727284232797,-212.026373,0.00012122,2]
[339193278,1727284232809,-29.22886604,0.00012191,2]
[339193279,1727284232824,-120.77113396,0.00012191,2]
[339193280,1727284232834,-155.74886604,0.00012192,2]
[339193281,1727284232846,-144.25113396,0.00012192,2]
[339193282,1727284232856,-155.43886614,0.00012192,2]
[339193283,1727284232868,-272.92113386,0.00012192,2]
[339193284,1727284232878,-300.0,0.00012192,2]
[339193285,1727284232888,-273.16581062,0.00012192,2]
[339193286,1727284232900,-155.19418938,0.00012192,2]
[339193287,1727284232910,-428.36,0.00012192,2]
[339193288,1727284232919,-119.38155071,0.00012192,2]
[339193289,1727284232931,-308.97844929,0.00012192,2]
[339193290,1727284232941,-428.36,0.00012192,2]
[339193291,1727284232951,-856.09,0.00012192,2]
[339193292,1727284232961,-212.026373,0.00012274,2]
[339193293,1727284232971,-212.026373,0.00012425,2]
[339193294,1727284232981,-167.09,0.00012445,2]
[339193295,1727284232991,-212.026373,0.00012577,2]
[339193296,1727284233001,-14173.78027155,0.00012587,2]
[339193297,1727284233013,-389.84087267,0.00012587,2]
[339193298,1727284233025,-1355.90825311,0.00012587,2]
[339193299,1727284233036,-3106.15268631,0.00012587,2]
[339193300,1727284233048,-460.19652237,0.00012587,2]
[339193301,1727284233063,-250.0,0.00012587,2]
[339193302,1727284233074,-752.76793986,0.00012587,2]
[339193303,1727284233087,-7517.22981859,0.00012587,2]
[339193304,1727284233098,-290.16336359,0.00012587,2]
[339193305,1727284233110,-946.25343641,0.00012587,2]
[339193306,1727284233122,-2034.3771887,0.00012587,2]
[339193307,1727284233134,-4603.03995499,0.00012587,2]
[339193308,1727284233184,500.0,0.00021999,120]
[339193309,1727284233238,642.50809861,0.00021999,120]
[339193310,1727284233340,500.0,0.00021999,120]
[339193311,1727284233695,500.61883884,0.00021999,120]
[339193312,1727284233898,500.0,0.00021999,120]
[339193313,1727284234205,500.0,0.00021999,120]
[339193314,1727284234523,254.84043816,0.00021999,120]
[339193315,1727284234930,500.0,0.00021999,120]
[339193316,1727284235004,500.0,0.00021999,120]
[339193317,1727284235255,500.0,0.00021999,120]
[339193318,1727284235362,500.0,0.00021999,120]
[339193319,1727284235605,500.0,0.00021999,120]
[339193320,1727284237192,500.0,0.00021999,120]
[339193321,1727284237341,500.0,0.00021999,120]
[339193322,1727284237685,500.0,0.00021999,120]
[339193323,1727284237883,501.20717053,0.00021999,120]
[339193324,1727284238030,500.0,0.00021999,120]
[339193329,1727284238259,500.0,0.00021999,120]
[339193330,1727284238336,174.94,0.00021999,120]
[339193332,1727284238518,500.0,0.00021999,120]
[339193333,1727284238533,-5600.74336425,0.00012587,2]
[339193335,1727284238587,500.0,0.00021999,120]
[339193336,1727284238711,-4116.2408276,0.00012587,2]
[339193337,1727284238722,-1966.3441,0.00012693,2]
[339193338,1727284238734,-1463.0877,0.00012698,2]
[339193339,1727284238745,-161.40008971,0.00012704,2]
[339193340,1727284238757,-3517.72063808,0.00012705,2]
[339193341,1727284238768,-290.6,0.00012709,2]
[339193342,1727284238780,-3517.72063801,0.00012727,2]
[339193343,1727284238791,-212.026373,0.00012728,2]
[339193344,1727284238802,-3517.72063801,0.00012748,2]
[339193345,1727284238814,-161.40008968,0.00012753,2]
[339193346,1727284238834,-3517.72063801,0.0001277,2]
[339193347,1727284238847,-3517.72063801,0.00012792,2]
[339193348,1727284238858,-229485.9116,0.00012798,2]
[339193349,1727284238870,-161.40008968,0.00012802,2]
[339193350,1727284238883,-3517.72063801,0.00012813,2]
[339193351,1727284238897,-3517.72063801,0.00012835,2]
[339193352,1727284238908,-161.40008968,0.00012851,2]
[339193353,1727284238920,-3517.72063801,0.00012857,2]
[339193354,1727284238934,-368.79400665,0.00012872,2]
[339193355,1727284238947,-3517.72063801,0.00012878,2]
[339193356,1727284238960,-500.0,0.00012896,2]
[339193357,1727284238973,-168.64780149,0.000129,2]
[339193358,1727284238986,-1001.08,0.000129,2]
[339193359,1727284239001,-3517.72063801,0.000129,2]
[339193360,1727284239014,-170.7031587,0.000129,2]
[339193361,1727284239029,-170.7031587,0.000129,2]
[339193362,1727284239044,-171.2,0.000129,2]
[339193363,1727284239061,-241.61366286,0.000129,2]
[339193364,1727284239076,-161.40008968,0.000129,2]
[339193365,1727284239089,-966.25248526,0.000129,2]
[339193366,1727284239103,-2539.23390778,0.000129,2]
[339193367,1727284239115,-500.0,0.00012904,2]
[339193368,1727284239130,-200.197,0.0001296,2]
[339193369,1727284239144,-150.0,0.0001297,2]
[339193370,1727284239166,-150.0,0.0001297,2]
[339193371,1727284239188,-500.0,0.00012973,2]
[339193373,1727284239212,-301.17200511,0.00012973,2]
[339193374,1727284239234,-238.07,0.00012977,2]
[339193375,1727284239256,-157.41,0.0001299,2]
[339193376,1727284239279,-157.41,0.0001299,2]
[339193377,1727284239301,-737.6176334,0.00012996,2]
[339193378,1727284239343,-18252.8478605,0.00012996,2]
[339193379,1727284239384,-285.45157358,0.00012999,2]
[339193380,1727284239396,-169.0686501,0.00012999,2]
[339193381,1727284239408,-500.0,0.00012999,2]
[339193382,1727284239421,-500.0,0.00012999,2]
[339193383,1727284239434,-500.0,0.00012999,2]
[339193384,1727284239445,-500.0,0.00012999,2]
[339193385,1727284239456,-447.61433062,0.00012999,2]
[339193386,1727284239467,-500.0,0.00012999,2]
[339193387,1727284239477,-500.0,0.00012999,2]
[339193388,1727284239490,-500.0,0.00012999,2]
[339193389,1727284239501,-500.0,0.00012999,2]
[339193390,1727284239514,-500.0,0.00012999,2]
[339193391,1727284239527,-150.01,0.00012999,2]
[339193392,1727284239539,-514.0,0.00013,2]
[339193393,1727284239551,-648742.63131124,0.00013,2]
[339193394,1727284239565,-70714.27703526,0.00013,2]
[339193395,1727284239576,-513098.33362186,0.00013,2]
[339193396,1727284239586,-276916.04508468,0.00013,2]
[339193397,1727284239598,-569695.08464012,0.00013,2]
[339193398,1727284239611,-473616.0315421,0.00013,2]
[339193399,1727284239622,-798843.66854606,0.00013,2]
[339193400,1727284239647,-63491.59336379,0.00013,2]
[339193401,1727284239713,500.0,0.00021999,120]
[339193402,1727284239779,500.0,0.00021999,120]
[339193403,1727284239837,500.0,0.00021999,120]
[339193404,1727284239901,500.0,0.00021999,120]
[339193405,1727284239952,500.0,0.00021999,120]
[339193410,1727284240107,617.05577513,0.00021999,120]
[339193420,1727284240488,501.17217434,0.00021999,120]
[339193422,1727284240712,500.0,0.00021999,120]
[339193427,1727284241134,500.0,0.00021999,120]
[339193428,1727284241334,500.0,0.00021999,120]
[339193429,1727284241480,206.70557599,0.00021999,120]
[339193430,1727284241752,500.0,0.00021999,120]
[339193431,1727284242046,500.63394928,0.00021999,120]
[339193443,1727284243870,500.0,0.00021999,120]
[339193444,1727284243926,500.0,0.00021999,120]
[339193445,1727284244223,500.0,0.00021999,120]
[339193446,1727284244320,500.0,0.00021999,120]
[339193447,1727284244549,500.0,0.00021999,120]
[339193448,1727284244900,500.0,0.00021999,120]
[339193449,1727284245584,500.0,0.00021999,120]
[339193450,1727284245917,500.0,0.00021999,120]
[339193455,1727284246245,214.82,0.00021999,120]
[339193498,1727284247007,500.0,0.00021999,120]
[339193506,1727284247083,500.0,0.00021999,120]
[339193513,1727284247132,507.55905746,0.00021999,120]
[339193519,1727284247182,500.0,0.00021999,120]
[339193534,1727284247313,500.0,0.00021999,120]
[339193542,1727284247381,622.16367259,0.00021999,120]
[339193568,1727284247615,500.0,0.00021999,120]
[339193574,1727284247661,500.0,0.00021999,120]
[339193606,1727284247951,500.0,0.00021999,120]
[339193613,1727284247997,500.0,0.00021999,120]
[339193644,1727284248282,599.48497634,0.00021999,120]
[339193654,1727284248435,500.0,0.00021999,120]
[339193655,1727284248790,500.0,0.00021999,120]
[339193656,1727284249104,246.7746674,0.00021999,120]
[339193657,1727284250020,500.6845013,0.00021999,120]
[339193658,1727284250467,573.93,0.00021999,120]
[339193659,1727284250934,573.93,0.00021999,120]
[339193660,1727284251217,573.93,0.00021999,120]
[339193661,1727284251289,500.0,0.00021999,120]
[339193662,1727284251565,573.93,0.00021999,120]
[339193663,1727284251615,501.38255269,0.00021999,120]
[339193664,1727284251928,573.93,0.00021999,120]
[339193665,1727284251980,500.0,0.00021999,120]
[339193666,1727284252285,573.93,0.00021999,120]
[339193667,1727284252373,500.0,0.00021999,120]
[339193668,1727284252615,500.0,0.00021999,120]
[339193669,1727284252856,573.93,0.00021999,120]
[339193670,1727284252939,500.0,0.00021999,120]
[339193671,1727284253250,500.0,0.00021999,120]
[339193672,1727284253570,573.93,0.00021999,120]
[339193673,1727284253618,588.76223165,0.00021999,120]
[339193674,1727284253961,573.93,0.00021999,120]
[339193675,1727284254302,573.93,0.00021999,120]
[339193676,1727284254641,573.93,0.00021999,120]
[339193677,1727284255365,573.93,0.00021999,120]
[339193678,1727284255759,573.93,0.00021999,120]
[339193679,1727284256074,500.0,0.00021999,120]
[339193680,1727284256198,573.93,0.00021999,120]
[339193681,1727284256390,500.0,0.00021999,120]
[339193682,1727284256437,500.0,0.00021999,120]
[339193683,1727284256555,573.93,0.00021999,120]
[339193684,1727284256694,500.0,0.00021999,120]
[339193685,1727284256780,500.0,0.00021999,120]
[339193686,1727284256829,500.0,0.00021999,120]
[339193687,1727284257016,500.0,0.00021999,120]
[339193688,1727284257089,500.0,0.00021999,120]
[339193689,1727284257134,500.0,0.00021999,120]
[339193690,1727284257182,500.0,0.00021999,120]
[339193691,1727284257245,573.93,0.00021999,120]
[339193692,1727284257330,500.0,0.00021999,120]
[339193693,1727284257410,500.0,0.00021999,120]
[339193694,1727284257631,573.93,0.00021999,120]
[339193695,1727284257681,500.0,0.00021999,120]
[339193696,1727284257729,500.0,0.00021999,120]
[339193697,1727284257871,500.0,0.00021999,120]
[339193698,1727284257914,500.0,0.00021999,120]
[339193699,1727284257962,500.0,0.00021999,120]
[339193700,1727284257994,156.67,0.00013918,30]
[339193701,1727284258041,573.93,0.00021999,120]
[339193702,1727284258176,500.0,0.00021999,120]
[339193703,1727284258224,603.27867465,0.00021999,120]
[339193704,1727284258275,568.21945542,0.00021999,120]
[339193705,1727284258395,573.93,0.00021999,120]
[339193706,1727284258480,500.0,0.00021999,120]
[339193707,1727284258619,500.0,0.00021999,120]
[339193708,1727284258951,573.93,0.00021999,120]
[339193709,1727284258999,500.0,0.00021999,120]
[339193710,1727284259057,500.0,0.00021999,120]
[339193711,1727284259113,500.0,0.00021999,120]
[339193712,1727284259273,573.93,0.00021999,120]
[339193713,1727284259323,552.5635182,0.00021999,120]
[339193714,1727284259436,500.0,0.00021999,120]
[339193715,1727284259670,573.93,0.00021999,120]
[339193716,1727284259767,316.86896981,0.00021999,120]
[339193717,1727284260061,573.93,0.00021999,120]
[339193718,1727284260448,573.99455695,0.00021999,120]
[339193719,1727284260627,500.0,0.00021999,120]
[339193720,1727284260689,500.58390445,0.00021999,120]
[339193721,1727284261259,500.0,0.00021999,120]
[339193722,1727284261332,500.0,0.00021999,120]
[339193723,1727284261378,500.0,0.00021999,120]
[339193724,1727284261717,500.0,0.00021999,120]
[339193725,1727284262029,500.0,0.00021999,120]
[339193726,1727284262363,500.0,0.00021999,120]
[339193727,1727284262694,500.0,0.00021999,120]
[339193728,1727284263019,500.0,0.00021999,120]
[339193729,1727284263364,500.0,0.00021999,120]
[339193730,1727284263555,457.65873422,0.00021999,120]
[339193731,1727284263688,500.0,0.00021999,120]
[339193732,1727284263933,340.04583668,0.00021999,120]
[339193733,1727284264043,500.0,0.00021999,120]
[339193734,1727284264096,500.0,0.00021999,120]
[339193735,1727284264468,500.0,0.00021999,120]
[339193736,1727284264553,500.0,0.00021999,120]
[339193737,1727284264885,500.0,0.00021999,120]
[339193738,1727284264940,500.0,0.00021999,120]
[339193739,1727284264991,500.0,0.00021999,120]
[339193740,1727284265244,500.0,0.00021999,120]
[339193741,1727284265292,503.5,0.00021999,120]
[339193742,1727284265539,500.0,0.00021999,120]
[339193743,1727284265590,500.0,0.00021999,120]
[339193744,1727284265860,500.0,0.00021999,120]
[339193745,1727284265981,500.0,0.00021999,120]
[339193746,1727284266216,493.95930352,0.00021999,120]
[339193747,1727284266262,500.0,0.00021999,120]
[339193748,1727284266579,500.0,0.00021999,120]
[339193749,1727284266891,500.0,0.00021999,120]
[339193750,1727284267203,500.0,0.00021999,120]
[339193751,1727284267527,500.0,0.00021999,120]
[339193752,1727284267842,367.37982836,0.00021999,120]
[339193753,1727284269485,500.0,0.00021999,120]
[339193754,1727284269815,500.0,0.00021999,120]
[339193755,1727284270195,500.0,0.00021999,120]
[339193756,1727284270336,500.0,0.00021999,120]
[339193757,1727284270514,263.54385173,0.00021999,120]
[339193758,1727284270569,500.0,0.00021999,120]
[339193759,1727284270825,500.0,0.00021999,120]
[339193760,1727284270880,500.0,0.00021999,120]
[339193761,1727284270926,500.0,0.00021999,120]
[339193762,1727284271129,500.0,0.00021999,120]
[339193763,1727284271209,500.0,0.00021999,120]
[339193764,1727284271462,455.43,0.00021999,120]
[339193765,1727284271511,500.0,0.00021999,120]
[339193766,1727284271793,500.0,0.00021999,120]
[339193767,1727284271917,542.60636362,0.00021999,120]
[339193768,1727284271962,525.58,0.00021999,120]
[339193769,1727284272120,500.0,0.00021999,120]
[339193770,1727284272274,500.0,0.00021999,120]
[339193771,1727284272411,500.0,0.00021999,120]
[339193772,1727284272602,500.0,0.00021999,120]
[339193773,1727284272737,500.0,0.00021999,120]
[339193774,1727284272840,500.0,0.00021999,120]
[339193775,1727284272938,500.0,0.00021999,120]
[339193776,1727284273060,258.42198129,0.00021999,120]
[339193777,1727284273153,500.0,0.00021999,120]
[339193778,1727284273240,500.0,0.00021999,120]
[339193779,1727284273360,500.0,0.00021999,120]
[339193780,1727284273463,547.43643868,0.00021999,120]
[339193781,1727284273580,495.42651111,0.00021999,120]
[339193782,1727284273675,494.10657867,0.00021999,120]
[339193783,1727284274576,500.0,0.00021999,120]
[339193784,1727284274923,500.0,0.00021999,120]
[339193785,1727284275229,500.0,0.00021999,120]
[339193786,1727284275603,263.46,0.00021999,120]
[339193787,1727284275697,500.0,0.00021999,120]
[339193788,1727284276033,400.1425789,0.00021999,120]
[339193789,1727284276400,500.0,0.00021999,120]
[339193790,1727284276722,500.0,0.00021999,120]
[339193791,1727284277045,608.50453579,0.00021999,120]
[339193792,1727284277591,500.0,0.00021999,120]
[339193793,1727284277697,500.0,0.00021999,120]
[339193794,1727284278004,500.0,0.00021999,120]
[339193795,1727284278145,500.0,0.00021999,120]
[339193796,1727284278316,500.0,0.00021999,120]
[339193797,1727284278554,469.1870009,0.00021999,120]
[339193798,1727284278632,500.0,0.00021999,120]
[339193799,1727284278949,500.0,0.00021999,120]
[339193800,1727284279052,500.0,0.00021999,120]
[339193801,1727284279145,500.0,0.00021999,120]
[339193802,1727284279256,500.0,0.00021999,120]
[339193803,1727284279525,500.0,0.00021999,120]
[339193804,1727284279572,500.0,0.00021999,120]
[339193805,1727284279750,170.78211431,0.00021999,120]
[339193806,1727284279862,500.0,0.00021999,120]
[339193807,1727284279910,500.0,0.00021999,120]
[339193808,1727284279970,500.0,0.00021999,120]
[339193809,1727284280180,500.0,0.00021999,120]
[339193810,1727284280227,500.0,0.00021999,120]
[339193811,1727284280277,427.55913653,0.00021999,120]
[339193812,1727284280331,500.0,0.00021999,120]
[339193813,1727284280380,500.0,0.00021999,120]
[339193814,1727284280457,550.99902299,0.00021999,120]
[339193815,1727284280507,500.0,0.00021999,120]
[339193816,1727284280556,500.0,0.00021999,120]
[339193817,1727284280607,500.0,0.00021999,120]
[339193818,1727284280666,500.0,0.00021999,120]
[339193819,1727284280807,500.0,0.00021999,120]
[339193820,1727284280859,500.0,0.00021999,120]
[339193821,1727284280906,500.0,0.00021999,120]
[339193822,1727284281101,521.87795945,0.00021999,120]
[339193823,1727284281146,500.0,0.00021999,120]
[339193824,1727284281210,500.0,0.00021999,120]
[339193825,1727284281420,500.0,0.00021999,120]
[339193826,1727284281708,500.0,0.00021999,120]
[339193827,1727284281753,500.0,0.00021999,120]
[339193828,1727284281797,331.98800362,0.00021999,120]
[339193829,1727284281847,500.0,0.00021999,120]
[339193830,1727284281890,512.49708524,0.00021999,120]
[339193831,1727284281935,325.43297575,0.00021999,120]
[339193832,1727284281983,500.0,0.00021999,120]
[339193833,1727284282067,500.0,0.00021999,120]
[339193834,1727284282401,500.0,0.00021999,120]
[339193835,1727284282748,381.14761327,0.00021999,120]
[339193836,1727284283553,500.0,0.00021999,120]
[339193837,1727284283966,500.0,0.00021999,120]
[339193838,1727284284712,500.0,0.00021999,120]
[339193839,1727284284762,490.02103317,0.00021999,120]
[339193840,1727284284847,500.0,0.00021999,120]
[339193841,1727284285041,500.0,0.00021999,120]
[339193842,1727284285187,500.0,0.00021999,120]
[339193843,1727284285361,251.22,0.00021999,120]
[339193844,1727284285393,500.0,0.00010164,2]
[339193845,1727284285503,500.0,0.00021999,120]
[339193846,1727284285826,459.8826247,0.00021999,120]
[339193847,1727284287119,500.0,0.00021999,120]
[339193848,1727284287423,500.0,0.00021999,120]
[339193849,1727284287773,500.0,0.00021999,120]
[339193850,1727284288553,500.0,0.00021999,120]
[339193851,1727284288869,500.98036439,0.00021999,120]
[339193852,1727284290572,500.0,0.00021999,120]
[339193853,1727284290901,500.0,0.00021999,120]
[339193854,1727284291227,500.0,0.00021999,120]
[339193855,1727284291510,500.0,0.00021999,120]
[339193856,1727284291567,500.99456045,0.00021999,120]
[339193857,1727284292204,500.0,0.00021999,120]
[339193858,1727284292261,500.0,0.00021999,120]
[339193859,1727284293523,500.0,0.00021999,120]
[339193860,1727284293667,500.0,0.00021999,120]
[339193861,1727284293717,500.47954584,0.00021999,120]
[339193862,1727284293915,500.0,0.00021999,120]
[339193863,1727284294098,500.0,0.00021999,120]
[339193864,1727284294363,500.0,0.00021999,120]
[339193865,1727284294446,500.0,0.00021999,120]
[339193866,1727284294742,500.0,0.00021999,120]
[339193867,1727284294791,500.0,0.00021999,120]
[339193868,1727284294843,500.0,0.00021999,120]
[339193869,1727284294916,500.0,0.00021999,120]
[339193870,1727284295061,500.0,0.00021999,120]
[339193871,1727284295110,500.0,0.00021999,120]
[339193872,1727284295242,500.0,0.00021999,120]
[339193873,1727284295312,500.0,0.00021999,120]
[339193874,1727284295385,500.0,0.00021999,120]
[339193875,1727284295431,500.0,0.00021999,120]
[339193876,1727284295637,500.0,0.00021999,120]
[339193877,1727284295785,500.0,0.00021999,120]
[339193878,1727284295836,301.12065736,0.00021999,120]
[339193879,1727284295886,500.0,0.00021999,120]
[339193880,1727284296103,500.0,0.00021999,120]
[339193881,1727284296152,500.0,0.00021999,120]
[339193882,1727284296374,500.97786148,0.00021999,120]
[339193883,1727284296422,610.87073754,0.00021999,120]
[339193884,1727284296493,500.0,0.00021999,120]
[339193885,1727284296585,500.0,0.00021999,120]
[339193886,1727284296798,500.0,0.00021999,120]
[339193887,1727284296987,500.0,0.00021999,120]
[339193888,1727284297106,615.0957472,0.00021999,120]
[339193889,1727284297387,179.95934756,0.00021999,120]
[339193890,1727284298425,500.0,0.00021999,120]
[339193891,1727284298885,500.0,0.00021999,120]
[339193892,1727284298994,500.0,0.00021999,120]
[339193893,1727284299236,533.51642199,0.00021999,120]
[339193894,1727284299345,500.0,0.00021999,120]
[339193895,1727284299687,500.0,0.00021999,120]
[339193896,1727284300064,500.0,0.00021999,120]
[339193897,1727284300261,500.0,0.00021999,120]
[339193898,1727284300386,500.0,0.00021999,120]
[339193899,1727284300737,500.0,0.00021999,120]
[339193900,1727284300828,500.0,0.00021999,120]
[339193901,1727284300900,500.0,0.00021999,120]
[339193902,1727284301269,500.0,0.00021999,120]
[339193903,1727284301411,500.0,0.00021999,120]
[339193904,1727284301457,500.0,0.00021999,120]
[339193905,1727284301591,500.0,0.00021999,120]
[339193906,1727284301640,501.28587114,0.00021999,120]
[339193907,1727284301749,500.0,0.00021999,120]
[339193908,1727284301798,500.0,0.00021999,120]
[339193909,1727284301899,500.0,0.00021999,120]
[339193910,1727284302054,500.0,0.00021999,120]
[339193911,1727284302397,501.21462225,0.00021999,120]
[339193912,1727284302451,500.0,0.00021999,120]
[339193913,1727284302707,157.43636153,0.00021999,120]
[339193914,1727284304766,500.0,0.00021999,120]
[339193915,1727284304990,500.0,0.00021999,120]
[339193916,1727284305115,500.0,0.00021999,120]
[339193917,1727284305169,500.0,0.00021999,120]
[339193918,1727284305468,500.0,0.00021999,120]
[339193919,1727284305520,500.0,0.00021999,120]
[339193920,1727284305671,500.0,0.00021999,120]
[339193921,1727284305811,272.72854153,0.00021999,120]
[339193922,1727284305863,500.0,0.00021999,120]
[339193923,1727284305997,500.0,0.00021999,120]
[339193924,1727284306152,500.0,0.00021999,120]
[339193925,1727284306329,500.0,0.00021999,120]
[339193926,1727284306453,500.0,0.00021999,120]
[339193927,1727284306650,500.0,0.00021999,120]
[339193928,1727284306789,637.30385334,0.00021999,120]
[339193929,1727284307090,500.0,0.00021999,120]
[339193930,1727284307426,500.0,0.00021999,120]
[339193931,1727284307771,306.72205678,0.00021999,120]
[339193932,1727284309254,500.0,0.00021999,120]
[339193933,1727284309376,500.0,0.00021999,120]
[339193934,1727284309584,642.42,0.00021999,120]
[339193935,1727284309725,500.0,0.00021999,120]
[339193936,1727284310069,501.03617549,0.00021999,120]
[339193937,1727284311256,500.0,0.00021999,120]
[339193938,1727284311532,500.0,0.00021999,120]
[339193939,1727284311581,500.0,0.00021999,120]
[339193940,1727284311949,500.0,0.00021999,120]
[339193941,1727284312089,500.0,0.00021999,120]
[339193942,1727284312285,500.0,0.00021999,120]
[339193943,1727284312611,500.0,0.00021999,120]
[339193944,1727284312660,500.0,0.00021999,120]
[339193945,1727284312888,500.0,0.00021999,120]
[339193946,1727284313297,500.0,0.00021999,120]
[339193947,1727284313940,500.0,0.00021999,120]
[339193948,1727284313996,500.0,0.00021999,120]
[339193949,1727284314334,500.0,0.00021999,120]
[339193950,1727284314380,273.20565944,0.00021999,120]
[339193951,1727284314639,500.0,0.00021999,120]
[339193952,1727284314944,500.0,0.00021999,120]
[339193953,1727284315282,500.0,0.00021999,120]
[339193954,1727284315328,500.0,0.00021999,120]
[339193955,1727284315604,337.98117647,0.00021999,120]
[339193956,1727284315846,500.0,0.00021999,120]
[339193960,1727284316320,500.0,0.00021999,120]
[339193961,1727284316676,500.0,0.00021999,120]
[339193962,1727284316728,500.0,0.00021999,120]
[339193963,1727284316999,500.0,0.00021999,120]
[339193964,1727284317055,500.0,0.00021999,120]
[339193965,1727284317378,500.0,0.00021999,120]
[339193966,1727284317427,500.0,0.00021999,120]
[339193967,1727284317746,500.0,0.00021999,120]
[339193968,1727284317817,500.0,0.00021999,120]
[339193969,1727284318427,500.0,0.00021999,120]
[339193970,1727284318470,501.01306969,0.00021999,120]
[339193971,1727284318521,500.0,0.00021999,120]
[339193972,1727284318925,500.0,0.00021999,120]
[339193973,1727284319618,500.0,0.00021999,120]
[339193974,1727284319964,306.98632067,0.00021999,120]
[339193975,1727284320502,500.0,0.00021999,120]
[339193976,1727284320557,500.0,0.00021999,120]
[339193977,1727284320813,378.00089438,0.00021999,120]
[339193978,1727284320875,500.0,0.00021999,120]
[339193979,1727284321753,527.76433243,0.00021999,120]
[339193980,1727284323460,629.27428528,0.00021999,120]
[339193981,1727284325604,327.06,0.00021999,120]
[339193982,1727284326297,500.52896114,0.00021999,120]
[339193983,1727284326734,500.0,0.00021999,120]
[339193984,1727284327092,500.0,0.00021999,120]
[339193985,1727284327419,500.0,0.00021999,120]
[339193986,1727284327753,500.0,0.00021999,120]
[339193987,1727284328099,500.0,0.00021999,120]
[339193988,1727284328198,501.11516589,0.00021999,120]
[339193989,1727284328432,500.0,0.00021999,120]
[339193990,1727284328748,500.0,0.00021999,120]